[Event "*** Titled Tuesday Blitz"]
[Site "Chess.com"]
[Date "2021.02.02"]
[Round "4"]
[White "Sharpchess22"]
[Black "hypert"]
[Result "1-0"]
[WhiteElo "2693"]
[BlackElo "2373"]
[TimeControl "180+1"]
[EndTime "10:39:45 PST"]
[Termination "Sharpchess22 won by resignation"]

1. d4 {[%clk 0:03:00.9]} 1... d5 {[%clk 0:02:57.9]} 2. c4 {[%clk 0:03:00.6]}
2... c6 {[%clk 0:02:58.4]} 3. Nc3 {[%clk 0:03:00.1]} 3... Nf6 {[%clk 0:02:58.5]}
4. e3 {[%clk 0:03:00.3]} 4... e6 {[%clk 0:02:57.3]} 5. Nf3 {[%clk 0:03:00.5]}
5... Nbd7 {[%clk 0:02:57.1]} 6. Qc2 {[%clk 0:03:00.3]} 6... Bd6 {[%clk
0:02:56.6]} 7. g4 {[%clk 0:02:59.7]} 7... h6 {[%clk 0:02:56.1]} 8. Bd2 {[%clk
0:02:57.6]} 8... dxc4 {[%clk 0:02:52.2]} 9. Bxc4 {[%clk 0:02:54.7]} 9... b5
{[%clk 0:02:52.5]} 10. Be2 {[%clk 0:02:43.2]} 10... Bb7 {[%clk 0:02:52.9]} 11.
Rg1 {[%clk 0:02:40.5]} 11... Qe7 {[%clk 0:02:48.7]} 12. h4 {[%clk 0:02:38.1]}
12... h5 {[%clk 0:02:29.5]} 13. g5 {[%clk 0:02:30]} 13... Ng4 {[%clk 0:02:29.4]}
14. Ne4 {[%clk 0:02:30.1]} 14... Bb4 {[%clk 0:02:24.4]} 15. Bxb4 {[%clk
0:02:25.5]} 15... Qxb4+ {[%clk 0:02:23.5]} 16. Nfd2 {[%clk 0:02:24.3]} 16... Rc8
{[%clk 0:02:08.8]} 17. Bxg4 {[%clk 0:02:17.8]} 17... hxg4 {[%clk 0:02:09.7]} 18.
Rxg4 {[%clk 0:02:17.7]} 18... g6 {[%clk 0:02:09.2]} 19. d5 {[%clk 0:02:10.1]}
19... Qe7 {[%clk 0:02:03.7]} 20. d6 {[%clk 0:02:08.9]} 20... Qf8 {[%clk
0:02:03.6]} 21. Qc3 {[%clk 0:02:06.6]} 21... Rh7 {[%clk 0:01:59.5]} 22. a4
{[%clk 0:02:06.1]} 22... a6 {[%clk 0:01:58]} 23. Nc5 {[%clk 0:02:01.5]} 23...
Nxc5 {[%clk 0:01:50.9]} 24. Qxc5 {[%clk 0:02:02.4]} 24... Qh8 {[%clk 0:01:38]}
25. Ne4 {[%clk 0:02:01.4]} 25... Rxh4 {[%clk 0:01:06.9]} 26. Nf6+ {[%clk
0:02:00.1]} 26... Kf8 {[%clk 0:01:00.8]} 27. d7+ {[%clk 0:01:58.6]} 27... Kg7
{[%clk 0:00:57.9]} 28. Rxh4 {[%clk 0:01:58.3]} 28... Qxh4 {[%clk 0:00:55.8]} 29.
dxc8=Q {[%clk 0:01:57.9]} 29... Bxc8 {[%clk 0:00:52.1]} 30. O-O-O {[%clk
0:01:53.9]} 30... Qxa4 {[%clk 0:00:50.6]} 31. Qc3 {[%clk 0:01:40.5]} 31... e5
{[%clk 0:00:48.8]} 32. Qxe5 {[%clk 0:01:40.2]} 32... Qa1+ {[%clk 0:00:40.7]} 33.
Kd2 {[%clk 0:01:39.7]} 33... Qxb2+ {[%clk 0:00:41.2]} 34. Qxb2 {[%clk
0:01:39.2]} 1-0

[Event "*** Titled Tuesday Blitz"]
[Site "Chess.com"]
[Date "2021.02.02"]
[Round "4"]
[White "Vamostodorecto"]
[Black "Agoking701"]
[Result "0-1"]
[WhiteElo "2449"]
[BlackElo "2308"]
[TimeControl "180+1"]
[EndTime "10:39:50 PST"]
[Termination "Agoking701 won by resignation"]

1. d4 {[%clk 0:03:00.3]} 1... b6 {[%clk 0:02:38.8]} 2. c4 {[%clk 0:03:01.2]}
2... Bb7 {[%clk 0:02:39.1]} 3. Nc3 {[%clk 0:02:57.7]} 3... e6 {[%clk 0:02:37.2]}
4. e4 {[%clk 0:02:56.9]} 4... Bb4 {[%clk 0:02:21.6]} 5. f3 {[%clk 0:02:56]} 5...
Nc6 {[%clk 0:02:08.7]} 6. Be3 {[%clk 0:02:54.7]} 6... e5 {[%clk 0:02:00.5]} 7.
d5 {[%clk 0:02:48.9]} 7... Nd4 {[%clk 0:01:44.5]} 8. Ne2 {[%clk 0:02:48.3]} 8...
Nxe2 {[%clk 0:01:32.2]} 9. Bxe2 {[%clk 0:02:49.2]} 9... Ne7 {[%clk 0:01:28.2]}
10. O-O {[%clk 0:02:47.3]} 10... Ng6 {[%clk 0:01:27.7]} 11. Qc2 {[%clk
0:02:41.4]} 11... Bc5 {[%clk 0:01:26.4]} 12. Bxc5 {[%clk 0:02:39.7]} 12... bxc5
{[%clk 0:01:27.3]} 13. g3 {[%clk 0:02:33.6]} 13... h5 {[%clk 0:01:18]} 14. f4
{[%clk 0:02:33.7]} 14... h4 {[%clk 0:01:08.6]} 15. f5 {[%clk 0:02:26.2]} 15...
hxg3 {[%clk 0:01:01.4]} 16. fxg6 {[%clk 0:02:02.3]} 16... Rxh2 {[%clk
0:00:52.7]} 17. gxf7+ {[%clk 0:02:03.2]} 17... Kf8 {[%clk 0:00:51.9]} 18. Qd3
{[%clk 0:01:40.8]} 18... Qh4 {[%clk 0:00:40.1]} 19. Bf3 {[%clk 0:01:38.9]} 19...
Rg2+ {[%clk 0:00:34.5]} 0-1

[Event "*** Titled Tuesday Blitz"]
[Site "Chess.com"]
[Date "2021.02.02"]
[Round "4"]
[White "remi04"]
[Black "Chessbard1972"]
[Result "1-0"]
[WhiteElo "2607"]
[BlackElo "2407"]
[TimeControl "180+1"]
[EndTime "10:39:59 PST"]
[Termination "remi04 won by checkmate"]

1. e4 {[%clk 0:03:00.9]} 1... c5 {[%clk 0:02:58.8]} 2. Nf3 {[%clk 0:03:00.8]}
2... a6 {[%clk 0:02:58.8]} 3. d4 {[%clk 0:03:01.1]} 3... cxd4 {[%clk 0:02:58.8]}
4. Nxd4 {[%clk 0:03:02]} 4... e6 {[%clk 0:02:59.1]} 5. c4 {[%clk 0:02:57.5]}
5... Nc6 {[%clk 0:02:55.2]} 6. Nc3 {[%clk 0:02:57.4]} 6... Qc7 {[%clk
0:02:53.5]} 7. a3 {[%clk 0:02:55.8]} 7... Nf6 {[%clk 0:02:51.6]} 8. Be3 {[%clk
0:02:55.7]} 8... Ne5 {[%clk 0:02:50.7]} 9. Rc1 {[%clk 0:02:53.9]} 9... Ng6
{[%clk 0:02:49.8]} 10. g3 {[%clk 0:02:49]} 10... b6 {[%clk 0:02:48.6]} 11. Bg2
{[%clk 0:02:48.6]} 11... Bb7 {[%clk 0:02:47.7]} 12. O-O {[%clk 0:02:47.3]} 12...
d6 {[%clk 0:02:47.1]} 13. f4 {[%clk 0:02:41.4]} 13... h5 {[%clk 0:02:43.6]} 14.
f5 {[%clk 0:02:38.8]} 14... exf5 {[%clk 0:02:33.7]} 15. Nxf5 {[%clk 0:02:34.5]}
15... Ne5 {[%clk 0:02:22.3]} 16. Nd5 {[%clk 0:02:34.2]} 16... Bxd5 {[%clk
0:02:18]} 17. cxd5 {[%clk 0:02:31.4]} 17... Qb7 {[%clk 0:02:15.1]} 18. Rc6
{[%clk 0:02:02.5]} 18... b5 {[%clk 0:02:07.3]} 19. Nxd6+ {[%clk 0:01:49.8]}
19... Bxd6 {[%clk 0:02:06.5]} 20. Rxd6 {[%clk 0:01:50.5]} 20... Nfg4 {[%clk
0:02:01.9]} 21. Bd4 {[%clk 0:01:48]} 21... f6 {[%clk 0:01:56.3]} 22. Re6+ {[%clk
0:01:47.4]} 22... Kd7 {[%clk 0:01:47.6]} 23. h3 {[%clk 0:01:46.9]} 23... Nh6
{[%clk 0:01:38.5]} 24. Bxe5 {[%clk 0:01:46.4]} 24... fxe5 {[%clk 0:01:37.8]} 25.
Rxh6 {[%clk 0:01:45.9]} 25... Qa7+ {[%clk 0:01:33.1]} 26. Kh2 {[%clk 0:01:44.3]}
26... Rxh6 {[%clk 0:01:30]} 27. Rf7+ {[%clk 0:01:44.1]} 27... Kd6 {[%clk
0:01:29.8]} 28. Rxa7 {[%clk 0:01:44.3]} 28... Rxa7 {[%clk 0:01:30.1]} 29. Qc1
{[%clk 0:01:42.4]} 29... Rc7 {[%clk 0:01:28]} 30. Qg5 {[%clk 0:01:42.9]} 30...
Rf6 {[%clk 0:01:23.8]} 31. h4 {[%clk 0:01:26.6]} 31... Rc2 {[%clk 0:01:22.5]}
32. Kg1 {[%clk 0:01:11.7]} 32... Rff2 {[%clk 0:01:19.1]} 33. Bh3 {[%clk
0:01:08.9]} 33... Rfd2 {[%clk 0:01:15.4]} 34. b4 {[%clk 0:00:59.4]} 34... Rd1+
{[%clk 0:01:11.2]} 35. Bf1 {[%clk 0:00:59]} 35... Rcc1 {[%clk 0:01:11]} 36. Qd8#
{[%clk 0:00:58.6]} 1-0

[Event "*** Titled Tuesday Blitz"]
[Site "Chess.com"]
[Date "2021.02.02"]
[Round "4"]
[White "bocah_sakit"]
[Black "Oligan22"]
[Result "1-0"]
[WhiteElo "2816"]
[BlackElo "2519"]
[TimeControl "180+1"]
[EndTime "10:40:04 PST"]
[Termination "bocah_sakit won by resignation"]

1. e4 {[%clk 0:03:00.9]} 1... c5 {[%clk 0:02:59.3]} 2. Nf3 {[%clk 0:03:01.1]}
2... e6 {[%clk 0:02:59.5]} 3. d4 {[%clk 0:03:01.3]} 3... cxd4 {[%clk 0:03:00.4]}
4. Nxd4 {[%clk 0:03:02.2]} 4... Nc6 {[%clk 0:03:01.1]} 5. Nc3 {[%clk 0:03:00.9]}
5... a6 {[%clk 0:03:01.5]} 6. g3 {[%clk 0:03:00.8]} 6... Nf6 {[%clk 0:02:59.1]}
7. Bg2 {[%clk 0:03:00.2]} 7... d6 {[%clk 0:02:50.6]} 8. O-O {[%clk 0:02:59.4]}
8... Bd7 {[%clk 0:02:51]} 9. Be3 {[%clk 0:02:59.8]} 9... Be7 {[%clk 0:02:49.9]}
10. Qe2 {[%clk 0:02:57.8]} 10... O-O {[%clk 0:02:50]} 11. Rad1 {[%clk
0:02:55.7]} 11... Rc8 {[%clk 0:02:47.5]} 12. h3 {[%clk 0:02:52.3]} 12... Ne5
{[%clk 0:02:46.4]} 13. Kh2 {[%clk 0:02:43]} 13... Nc4 {[%clk 0:02:44.2]} 14. Bc1
{[%clk 0:02:42]} 14... b5 {[%clk 0:02:42.4]} 15. b3 {[%clk 0:02:39.8]} 15... Ne5
{[%clk 0:02:39.3]} 16. Bb2 {[%clk 0:02:39.9]} 16... Qc7 {[%clk 0:02:20.2]} 17.
f4 {[%clk 0:02:38]} 17... Ng6 {[%clk 0:02:20.4]} 18. Qd2 {[%clk 0:02:34.3]}
18... Rfd8 {[%clk 0:02:09]} 19. f5 {[%clk 0:02:26.8]} 19... Ne5 {[%clk
0:01:55.6]} 20. fxe6 {[%clk 0:02:27]} 20... Bxe6 {[%clk 0:01:47]} 21. Nd5 {[%clk
0:02:16.7]} 21... Bxd5 {[%clk 0:01:30.8]} 22. exd5 {[%clk 0:02:17.6]} 22... Nfd7
{[%clk 0:01:15.5]} 23. Rde1 {[%clk 0:02:10.1]} 23... h6 {[%clk 0:01:10]} 24. Nc6
{[%clk 0:02:07.3]} 24... Nxc6 {[%clk 0:01:07.4]} 25. dxc6 {[%clk 0:02:08.2]}
25... Ne5 {[%clk 0:01:08]} 26. Bd5 {[%clk 0:02:03.3]} 26... Bg5 {[%clk
0:00:49.1]} 27. Qf2 {[%clk 0:01:57.8]} 27... Rf8 {[%clk 0:00:47.8]} 28. Qf5
{[%clk 0:01:52.6]} 28... Nxc6 {[%clk 0:00:45.3]} 29. h4 {[%clk 0:01:44.8]} 29...
Bd8 {[%clk 0:00:39.7]} 30. Bxf7+ {[%clk 0:01:35.6]} 30... Kh8 {[%clk 0:00:21.6]}
31. Bxg7+ {[%clk 0:01:33.7]} 1-0

[Event "*** Titled Tuesday Blitz"]
[Site "Chess.com"]
[Date "2021.02.02"]
[Round "4"]
[White "DFeco"]
[Black "WiktoriaPOL"]
[Result "1-0"]
[WhiteElo "2238"]
[BlackElo "1987"]
[TimeControl "180+1"]
[EndTime "10:40:05 PST"]
[Termination "DFeco won on time"]

1. c4 {[%clk 0:03:00.9]} 1... Nf6 {[%clk 0:02:59.1]} 2. g3 {[%clk 0:02:59.9]}
2... g6 {[%clk 0:02:58.8]} 3. Bg2 {[%clk 0:02:58.8]} 3... Bg7 {[%clk 0:02:59]}
4. Nc3 {[%clk 0:02:55.7]} 4... O-O {[%clk 0:02:58.2]} 5. e4 {[%clk 0:02:54.5]}
5... d6 {[%clk 0:02:57.6]} 6. Nge2 {[%clk 0:02:54.4]} 6... e5 {[%clk 0:02:57.1]}
7. O-O {[%clk 0:02:53.6]} 7... Nc6 {[%clk 0:02:56.7]} 8. d3 {[%clk 0:02:53.4]}
8... Ne8 {[%clk 0:02:50.9]} 9. h3 {[%clk 0:02:50.7]} 9... f5 {[%clk 0:02:50.1]}
10. f4 {[%clk 0:02:42.5]} 10... Nf6 {[%clk 0:02:47.8]} 11. Kh2 {[%clk
0:02:41.2]} 11... Ne7 {[%clk 0:02:39.1]} 12. Nd5 {[%clk 0:02:39.3]} 12... Nexd5
{[%clk 0:02:38.6]} 13. cxd5 {[%clk 0:02:38.1]} 13... fxe4 {[%clk 0:02:33.8]} 14.
dxe4 {[%clk 0:02:37.3]} 14... Qe7 {[%clk 0:02:28.6]} 15. f5 {[%clk 0:02:32.1]}
15... gxf5 {[%clk 0:02:25.7]} 16. exf5 {[%clk 0:02:30.1]} 16... Bd7 {[%clk
0:02:00.3]} 17. g4 {[%clk 0:02:27.5]} 17... Kh8 {[%clk 0:01:55.3]} 18. g5 {[%clk
0:02:24.7]} 18... Ne8 {[%clk 0:01:53.4]} 19. f6 {[%clk 0:02:23.7]} 19... Nxf6
{[%clk 0:01:52.5]} 20. gxf6 {[%clk 0:02:23.1]} 20... Bxf6 {[%clk 0:01:52.1]} 21.
Ng3 {[%clk 0:02:22.3]} 21... Rf7 {[%clk 0:01:50.9]} 22. Bh6 {[%clk 0:02:19.9]}
22... Rg8 {[%clk 0:01:48.9]} 23. Qh5 {[%clk 0:02:13.3]} 23... e4 {[%clk
0:01:42.3]} 24. Bxe4 {[%clk 0:01:54.3]} 24... Rxg3 {[%clk 0:01:38.9]} 25. Kxg3
{[%clk 0:01:53.5]} 25... Qxe4 {[%clk 0:00:45.2]} 26. Qxf7 {[%clk 0:01:49.5]}
26... Qe5+ {[%clk 0:00:10.7]} 27. Bf4 {[%clk 0:01:43]} 1-0

[Event "*** Titled Tuesday Blitz"]
[Site "Chess.com"]
[Date "2021.02.02"]
[Round "4"]
[White "gumimis"]
[Black "FMJoseHerrera"]
[Result "0-1"]
[WhiteElo "2322"]
[BlackElo "2495"]
[TimeControl "180+1"]
[EndTime "10:40:10 PST"]
[Termination "FMJoseHerrera won on time"]

1. e4 {[%clk 0:02:59.5]} 1... c5 {[%clk 0:02:59.9]} 2. Nf3 {[%clk 0:02:48.7]}
2... e6 {[%clk 0:02:59.7]} 3. d4 {[%clk 0:02:49.1]} 3... cxd4 {[%clk 0:03:00.6]}
4. Nxd4 {[%clk 0:02:50]} 4... a6 {[%clk 0:03:00.8]} 5. Nc3 {[%clk 0:02:49.5]}
5... Qc7 {[%clk 0:03:01.2]} 6. Bd3 {[%clk 0:02:46.3]} 6... b5 {[%clk 0:03:01]}
7. a3 {[%clk 0:02:45.9]} 7... Bb7 {[%clk 0:03:01.3]} 8. O-O {[%clk 0:02:45.5]}
8... Nf6 {[%clk 0:03:00.6]} 9. Qe2 {[%clk 0:02:37.5]} 9... d6 {[%clk 0:02:59.2]}
10. Kh1 {[%clk 0:02:13.1]} 10... h5 {[%clk 0:02:58.3]} 11. f4 {[%clk 0:02:01.1]}
11... Nbd7 {[%clk 0:02:57.8]} 12. Bd2 {[%clk 0:01:54.1]} 12... h4 {[%clk
0:02:56.9]} 13. Rae1 {[%clk 0:01:36.9]} 13... h3 {[%clk 0:02:56.1]} 14. g3
{[%clk 0:01:30.4]} 14... Be7 {[%clk 0:02:49.5]} 15. Nf3 {[%clk 0:01:28.3]} 15...
Rd8 {[%clk 0:02:33.9]} 16. Kg1 {[%clk 0:01:21.4]} 16... Ng4 {[%clk 0:02:30.8]}
17. Nd4 {[%clk 0:00:43.1]} 17... Ndf6 {[%clk 0:02:30.3]} 18. Nd1 {[%clk
0:00:16.2]} 18... Qb6 {[%clk 0:02:16.1]} 19. c3 {[%clk 0:00:16.1]} 19... e5
{[%clk 0:02:16]} 20. fxe5 {[%clk 0:00:15.5]} 20... dxe5 {[%clk 0:02:16.9]} 21.
Nf2 {[%clk 0:00:09.9]} 21... Nxf2 {[%clk 0:02:07.9]} 22. Rxf2 {[%clk 0:00:09.7]}
22... exd4 {[%clk 0:02:06.1]} 23. cxd4 {[%clk 0:00:10.3]} 23... Qxd4 {[%clk
0:02:03.8]} 24. Bb1 {[%clk 0:00:09.3]} 24... Bc5 {[%clk 0:01:58.8]} 25. Be3
{[%clk 0:00:04.6]} 25... Qxe3 {[%clk 0:01:54.7]} 26. Qxe3 {[%clk 0:00:05.5]}
26... Bxe3 {[%clk 0:01:55.2]} 27. Rxe3 {[%clk 0:00:06.4]} 27... Ng4 {[%clk
0:01:55.2]} 28. Rfe2 {[%clk 0:00:02]} 28... Rd1+ {[%clk 0:01:48.7]} 0-1

[Event "*** Titled Tuesday Blitz"]
[Site "Chess.com"]
[Date "2021.02.02"]
[Round "4"]
[White "KetiGrant"]
[Black "Supernotar"]
[Result "0-1"]
[WhiteElo "2377"]
[BlackElo "2776"]
[TimeControl "180+1"]
[EndTime "10:40:11 PST"]
[Termination "Supernotar won by resignation"]

1. e4 {[%clk 0:02:57.8]} 1... c6 {[%clk 0:02:59.7]} 2. d4 {[%clk 0:02:57]} 2...
d5 {[%clk 0:02:59.9]} 3. e5 {[%clk 0:02:57.1]} 3... Bf5 {[%clk 0:02:59.8]} 4.
Nd2 {[%clk 0:02:54.8]} 4... e6 {[%clk 0:02:59.1]} 5. Nb3 {[%clk 0:02:53.8]} 5...
Nd7 {[%clk 0:02:58.9]} 6. Nf3 {[%clk 0:02:52.8]} 6... h6 {[%clk 0:02:59]} 7. Be2
{[%clk 0:02:52.2]} 7... Ne7 {[%clk 0:02:58.4]} 8. O-O {[%clk 0:02:51.4]} 8...
Bg6 {[%clk 0:02:58.8]} 9. a4 {[%clk 0:02:49.7]} 9... Nf5 {[%clk 0:02:59]} 10. a5
{[%clk 0:02:48]} 10... Be7 {[%clk 0:02:59.5]} 11. c4 {[%clk 0:02:36.2]} 11...
dxc4 {[%clk 0:02:57.7]} 12. Bxc4 {[%clk 0:02:36.1]} 12... b5 {[%clk 0:02:54.7]}
13. Bd3 {[%clk 0:02:30.8]} 13... a6 {[%clk 0:02:54.5]} 14. Be4 {[%clk
0:02:26.3]} 14... Rc8 {[%clk 0:02:53.9]} 15. Re1 {[%clk 0:02:25.7]} 15... O-O
{[%clk 0:02:51.8]} 16. Bd2 {[%clk 0:02:25]} 16... c5 {[%clk 0:02:49.1]} 17. d5
{[%clk 0:02:21.8]} 17... exd5 {[%clk 0:02:44.9]} 18. Bxd5 {[%clk 0:02:21.2]}
18... c4 {[%clk 0:02:38.7]} 19. Nbd4 {[%clk 0:02:18.4]} 19... Nxd4 {[%clk
0:02:35]} 20. Nxd4 {[%clk 0:02:18.3]} 20... Nc5 {[%clk 0:02:21.7]} 21. Nc6
{[%clk 0:02:15.8]} 21... Qd7 {[%clk 0:02:20.1]} 22. Nxe7+ {[%clk 0:02:11]} 22...
Qxe7 {[%clk 0:02:21]} 23. Bb4 {[%clk 0:02:08.4]} 23... Rfd8 {[%clk 0:02:11.5]}
24. Qf3 {[%clk 0:02:07.8]} 24... Qc7 {[%clk 0:02:01.4]} 25. Re3 {[%clk
0:01:34.4]} 25... Bh5 {[%clk 0:01:32.4]} 26. Qxh5 {[%clk 0:01:06.2]} 26... Rxd5
{[%clk 0:01:32.4]} 27. h4 {[%clk 0:00:55.5]} 27... Nd3 {[%clk 0:01:29.9]} 28.
Bd6 {[%clk 0:00:48.4]} 28... Qxd6 {[%clk 0:01:24.8]} 29. exd6 {[%clk 0:00:44.9]}
29... Rxh5 {[%clk 0:01:24.8]} 30. d7 {[%clk 0:00:44.9]} 30... Rf8 {[%clk
0:01:24.6]} 31. Re8 {[%clk 0:00:24]} 31... Rd5 {[%clk 0:01:24.1]} 0-1

[Event "*** Titled Tuesday Blitz"]
[Site "Chess.com"]
[Date "2021.02.02"]
[Round "4"]
[White "Lukianoo"]
[Black "guillembaches"]
[Result "1-0"]
[WhiteElo "2767"]
[BlackElo "2456"]
[TimeControl "180+1"]
[EndTime "10:40:12 PST"]
[Termination "Lukianoo won on time"]

1. e4 {[%clk 0:03:00.9]} 1... c5 {[%clk 0:02:59.6]} 2. Nf3 {[%clk 0:02:59.4]}
2... d6 {[%clk 0:03:00.2]} 3. d4 {[%clk 0:02:59.4]} 3... cxd4 {[%clk 0:03:00.7]}
4. Qxd4 {[%clk 0:03:00.3]} 4... Nc6 {[%clk 0:03:00]} 5. Bb5 {[%clk 0:02:57.6]}
5... a6 {[%clk 0:03:00.5]} 6. Bxc6+ {[%clk 0:02:57.2]} 6... bxc6 {[%clk
0:03:00.9]} 7. O-O {[%clk 0:02:57.3]} 7... e5 {[%clk 0:02:57.5]} 8. Qd3 {[%clk
0:02:56.7]} 8... Be7 {[%clk 0:02:57.6]} 9. Rd1 {[%clk 0:02:53.6]} 9... Nf6
{[%clk 0:02:56.3]} 10. Bg5 {[%clk 0:02:50.3]} 10... O-O {[%clk 0:02:46.1]} 11.
Bxf6 {[%clk 0:02:48.3]} 11... Bxf6 {[%clk 0:02:46.2]} 12. Qxd6 {[%clk
0:02:47.3]} 12... Qb6 {[%clk 0:02:45.6]} 13. Qa3 {[%clk 0:02:38.2]} 13... Rb8
{[%clk 0:02:21.4]} 14. b3 {[%clk 0:02:33.2]} 14... Bg4 {[%clk 0:02:20.8]} 15.
Nbd2 {[%clk 0:02:32.1]} 15... Rfd8 {[%clk 0:02:19.8]} 16. h3 {[%clk 0:02:31.6]}
16... Bh5 {[%clk 0:02:16.4]} 17. Nc4 {[%clk 0:02:30.8]} 17... Qb5 {[%clk
0:02:07.2]} 18. Nd6 {[%clk 0:02:15.1]} 18... Qb6 {[%clk 0:01:40.6]} 19. Rd3
{[%clk 0:02:14.9]} 19... Be7 {[%clk 0:01:30.2]} 20. Rad1 {[%clk 0:02:13.9]}
20... Bxf3 {[%clk 0:01:06.1]} 21. gxf3 {[%clk 0:02:14.8]} 21... Rd7 {[%clk
0:00:46.1]} 22. c4 {[%clk 0:02:05.1]} 22... Rbd8 {[%clk 0:00:11.6]} 23. c5
{[%clk 0:02:04.5]} 23... Qb8 {[%clk 0:00:11.4]} 24. Qxa6 {[%clk 0:02:00.1]}
24... g6 {[%clk 0:00:09.1]} 25. Qxc6 {[%clk 0:01:56.9]} 25... Rc7 {[%clk
0:00:08.9]} 26. Qd5 {[%clk 0:01:54.9]} 26... Bf8 {[%clk 0:00:06.4]} 27. Qxe5
{[%clk 0:01:47.5]} 27... Re7 {[%clk 0:00:05]} 28. Qg3 {[%clk 0:01:43.7]} 1-0

[Event "*** Titled Tuesday Blitz"]
[Site "Chess.com"]
[Date "2021.02.02"]
[Round "4"]
[White "mishanick"]
[Black "wnstop"]
[Result "1-0"]
[WhiteElo "2888"]
[BlackElo "2743"]
[TimeControl "180+1"]
[EndTime "10:40:13 PST"]
[Termination "mishanick won by resignation"]

1. e4 {[%clk 0:03:00.9]} 1... c5 {[%clk 0:02:59.5]} 2. Nf3 {[%clk 0:03:00]} 2...
Nc6 {[%clk 0:02:59.7]} 3. Nc3 {[%clk 0:02:56.3]} 3... e5 {[%clk 0:02:59.4]} 4.
Bc4 {[%clk 0:02:56]} 4... Be7 {[%clk 0:02:59.4]} 5. d3 {[%clk 0:02:56.2]} 5...
d6 {[%clk 0:02:59.3]} 6. Nd2 {[%clk 0:02:56.2]} 6... Nf6 {[%clk 0:02:58.4]} 7.
Nf1 {[%clk 0:02:55.3]} 7... Nd7 {[%clk 0:02:58.2]} 8. Ne3 {[%clk 0:02:51.3]}
8... Nb6 {[%clk 0:02:58.1]} 9. O-O {[%clk 0:02:51.8]} 9... O-O {[%clk
0:02:57.9]} 10. Ned5 {[%clk 0:02:50.8]} 10... Kh8 {[%clk 0:02:56.9]} 11. f4
{[%clk 0:02:44.5]} 11... exf4 {[%clk 0:02:52.1]} 12. Bxf4 {[%clk 0:02:45.4]}
12... Nxd5 {[%clk 0:02:18.1]} 13. Nxd5 {[%clk 0:02:43.5]} 13... Bg5 {[%clk
0:02:16.2]} 14. Qd2 {[%clk 0:02:37.1]} 14... Bxf4 {[%clk 0:02:13.8]} 15. Qxf4
{[%clk 0:02:38]} 15... Be6 {[%clk 0:02:04.7]} 16. a3 {[%clk 0:02:37.5]} 16...
Nd4 {[%clk 0:02:03.1]} 17. Rf2 {[%clk 0:02:37.1]} 17... b5 {[%clk 0:01:57.1]}
18. Ba2 {[%clk 0:02:37.1]} 18... a5 {[%clk 0:01:38.9]} 19. Raf1 {[%clk
0:02:30.9]} 19... Rc8 {[%clk 0:01:29.1]} 20. Qg3 {[%clk 0:02:07.5]} 20... Nc6
{[%clk 0:01:08.6]} 21. h3 {[%clk 0:02:03.9]} 21... Ne5 {[%clk 0:01:07.8]} 22. c3
{[%clk 0:01:59.4]} 22... c4 {[%clk 0:01:05.4]} 23. d4 {[%clk 0:01:59.5]} 23...
Nd3 {[%clk 0:01:05]} 24. Re2 {[%clk 0:01:57.5]} 24... f5 {[%clk 0:01:02.8]} 25.
Nf4 {[%clk 0:01:50.3]} 25... Nxf4 {[%clk 0:00:45.1]} 26. Rxf4 {[%clk 0:01:49.7]}
26... fxe4 {[%clk 0:00:42.1]} 27. Rfxe4 {[%clk 0:01:49.7]} 27... Bf5 {[%clk
0:00:39.2]} 28. Re7 {[%clk 0:01:49.6]} 28... Bg6 {[%clk 0:00:36.4]} 29. Bb1
{[%clk 0:01:45.8]} 29... Re8 {[%clk 0:00:24.7]} 30. Bxg6 {[%clk 0:01:36]} 30...
Rxe7 {[%clk 0:00:23.8]} 31. Qh4 {[%clk 0:01:36.5]} 31... Kg8 {[%clk 0:00:16.3]}
32. Qxh7+ {[%clk 0:01:35.7]} 1-0

[Event "*** Titled Tuesday Blitz"]
[Site "Chess.com"]
[Date "2021.02.02"]
[Round "4"]
[White "AsaHoffmann"]
[Black "KruHor"]
[Result "0-1"]
[WhiteElo "2349"]
[BlackElo "2577"]
[TimeControl "180+1"]
[EndTime "10:40:20 PST"]
[Termination "KruHor won by resignation"]

1. d4 {[%clk 0:02:54.7]} 1... Nf6 {[%clk 0:02:59.1]} 2. Bg5 {[%clk 0:02:50.2]}
2... Ne4 {[%clk 0:02:57.8]} 3. Bf4 {[%clk 0:02:48.4]} 3... c5 {[%clk 0:02:56.8]}
4. f3 {[%clk 0:02:48.1]} 4... Nf6 {[%clk 0:02:53.1]} 5. dxc5 {[%clk 0:02:47.7]}
5... b6 {[%clk 0:02:52.7]} 6. Nc3 {[%clk 0:02:46.1]} 6... bxc5 {[%clk
0:02:51.2]} 7. e4 {[%clk 0:02:46]} 7... e6 {[%clk 0:02:45]} 8. e5 {[%clk
0:02:37.5]} 8... Nh5 {[%clk 0:02:44.2]} 9. Be3 {[%clk 0:02:36.9]} 9... f5 {[%clk
0:02:21.2]} 10. g4 {[%clk 0:02:19.9]} 10... fxg4 {[%clk 0:02:17.2]} 11. fxg4
{[%clk 0:02:19.5]} 11... Bb7 {[%clk 0:02:00.6]} 12. gxh5 {[%clk 0:02:08.7]}
12... Bxh1 {[%clk 0:01:58.6]} 13. Qg4 {[%clk 0:02:06]} 13... Nc6 {[%clk
0:01:50.3]} 14. Bf4 {[%clk 0:01:51.9]} 14... Nd4 {[%clk 0:01:38.4]} 15. O-O-O
{[%clk 0:01:50.7]} 15... Rb8 {[%clk 0:01:37.2]} 16. Nge2 {[%clk 0:01:34.8]}
16... Bf3 {[%clk 0:01:35.3]} 17. Qg3 {[%clk 0:01:32.8]} 17... Qb6 {[%clk
0:01:17.3]} 18. b3 {[%clk 0:01:28.7]} 18... Bxe2 {[%clk 0:01:13.8]} 19. Bxe2
{[%clk 0:01:25.9]} 19... Qa5 {[%clk 0:01:01.8]} 20. Bc4 {[%clk 0:01:16.8]} 20...
Rb4 {[%clk 0:00:58.2]} 21. Qg2 {[%clk 0:00:54]} 21... Rxc4 {[%clk 0:00:53.4]}
22. bxc4 {[%clk 0:00:53.3]} 22... Qxc3 {[%clk 0:00:52.7]} 23. Rxd4 {[%clk
0:00:42.5]} 23... Qa1+ {[%clk 0:00:50.3]} 24. Kd2 {[%clk 0:00:40.3]} 24... Qxd4+
{[%clk 0:00:49.8]} 25. Ke2 {[%clk 0:00:37.4]} 25... Qxf4 {[%clk 0:00:49.1]} 0-1